Cogmind - Beta 16 --- EXPLORER MODE // 2025.12.15 @ 10:05:57 Player: K.K.Y. Result: Destroyed by FQ-M0G(R) with Subdweller Laser Performance ------------- Evolutions (0) 0 Regions Visited (3) 600 Robots Destroyed (30) 150 Value Destroyed (638) 638 Prototype IDs (0) 0 Alien Tech Used (0) 0 Bonus (120) 120 TOTAL SCORE: 1508 Bonus ------- Follower Combat Kills 120 Cogmind --------- Core Integrity 0/250 Matter 300/300 Energy 150/150 System Corruption 0% Temperature Cool (6) Movement Core (350) Ox6 Location -10/Subcaves Parts ------- > --- POWER (1) -------- Light Angular Momentum Engine > --- PROPULSION (3) --- Flight Unit > --- UTILITY (2) ------ Small Storage Unit Weight Redist. System > --- WEAPON (2) ------- Heavy Riot Gun Mace > --- INVENTORY (8) ---- Flight Unit Improved Heat Sink Improved Heat Sink Huge Storage Unit Improved Terrain Scanner Shield Generator Beam Cannon Peak State ------------ > --- POWER ------------ Light Angular Momentum Engine > --- PROPULSION ------- Improved Hover Unit Improved Hover Unit Flight Unit > --- UTILITY ---------- Small Storage Unit Weight Redist. System > --- WEAPON ----------- Heavy Riot Gun Beam Cannon > --- INVENTORY -------- Flight Unit Improved Heat Sink Improved Heat Sink Huge Storage Unit Improved Terrain Scanner Shield Generator Beam Cannon Mace [Rating: 19] Favorites ----------- Power Light Nuclear Core Engine Light Angular Momentum Engine Power Core Light Nuclear Core Propulsion Improved Hover Unit Wheel Wheel Hover Unit Improved Hover Unit Flight Unit Flight Unit Utility Small Storage Unit Device Weight Redist. System Storage Small Storage Unit Processor Targeting Computer Weapon Beam Cannon Energy Gun Particle Gun Energy Cannon Beam Cannon Ballistic Gun Assault Rifle Special Weapon Mining Laser Impact Weapon Mace Build | -11 -10 -10 -10 ------- Run | Yrd Mat Min Sub Slots Evolved 1 | . 1 . . Power . | . . . . Propulsion 1 | . 1 . . Utility . | . . . . Weapon . | . . . . Parts Attached 29 | 8 13 3 5 Power 5 | 1 2 . 2 Engine 3 | 1 . . 2 Core 2 | . 2 . . Reactor . | . . . . Propulsion 13 | 4 7 2 . Treads . | . . . . Leg . | . . . . Wheel 5 | 4 1 . . Hover 7 | . 6 1 . Flight 1 | . . 1 . Utility 4 | 1 2 1 . Device 1 | . 1 . . Storage 2 | . 1 1 . Processor 1 | 1 . . . Hackware . | . . . . Protection . | . . . . Artifact . | . . . . Weapon 7 | 2 2 . 3 Energy Gun 2 | . 1 . 1 Energy Cannon 1 | . 1 . . Ballistic Gun 2 | 2 . . . Ballistic Cannon . | . . . . Launcher . | . . . . Special Weapon 1 | . . . 1 Impact Weapon 1 | . . . 1 Slashing Weapon . | . . . . Piercing Weapon . | . . . . Special Melee Weapon . | . . . . Unidentified Prototypes . | . . . . Parts Lost 6 | . 1 . 5 Power 2 | . . . 2 Propulsion 3 | . 1 . 2 Utility . | . . . . Weapon 1 | . . . 1 Highest Loss Streak 2 | . 1 . 2 To Critical Strikes . | . . . . Average Backups 6 | 1 4 7 7 Power . | . . . . Propulsion . | . . . 1 Utility 3 | . 2 3 4 Weapon 2 | . 2 3 2 Tool/Special . | . . . . Unused Backups 8 | . . 2 6 Power . | . . . . Propulsion 1 | . . . 1 Utility 6 | . . 2 4 Weapon 1 | . . . 1 Tool/Special . | . . . . Average Slot Usage (%) 93 | . 91 95 92 Engine 3 | . 2 . 7 Core 7 | . 9 12 2 Wheel 3 | . 10 . . Hover 22 | . 19 29 19 Flight 6 | . . 3 12 Device 10 | . 8 12 12 Storage 11 | . 11 12 12 Processor 1 | . 3 . . Energy Gun 10 | . 7 12 11 Energy Cannon 9 | . 7 12 8 Ballistic Gun 2 | . 8 . . Peak Build Rating 19 | 6 16 16 19 Average Rating 14 | 4 12 15 15 On Entrance 9 | . 6 16 15 Avg Prop Armor Cover (%) 3 | . . 4 3 Naked Turns . | . . . . Heaviest Build 21 | 7 16 16 21 Greatest Support 32 | 32 27 27 20 Greatest Overweight (x) 6 | 2 1 . 6 Average Overweight (x) . | . . . . Largest Inventory Capacity 25 | 5 8 25 8 Average Capacity 7 | 5 7 8 8 Most Carried 8 | 4 8 8 8 Average Carried 6 | 1 4 7 7 Final Capacity 8 | 5 8 8 8 Final Carried 8 | 2 8 8 7 Class Distribution -------------------- 92% | Hacker-Mutant 7% | Scavenger-Mutant Dominant Class ---------------- Hacker-Mutant | -10/Materials Hacker-Mutant | -10/Mines Hacker-Mutant | -10/Subcaves Resources | -11 -10 -10 -10 ----------- Run | Yrd Mat Min Sub Matter Collected 783 | 153 506 79 45 Remotely . | . . . . Salvage Created 1012 | 145 632 106 129 Parts 72 | 16 39 9 8 Haulers Intercepted 2 | . 2 . . Recyclers Shooed . | . . . . Parts Field Recycled . | . . . . Retrieved Matter . | . . . . Parts Self-Destructed . | . . . . Prevented . | . . . . Parts Restored . | . . . . Kills | -11 -10 -10 -10 ------- Run | Yrd Mat Min Sub Combat Hostiles Destroyed 15 | . 8 4 3 Guns 10 | . 8 . 2 Cannons 5 | . . 4 1 Classes Destroyed 9 | 2 5 1 1 Worker 2 | . 2 . . Builder 1 | . 1 . . Tunneler 5 | 5 . . . Hauler 2 | . 2 . . Recycler 2 | 1 1 . . Watcher 3 | . 3 . . Swarmer 2 | . . 2 . Grunt 10 | . 8 2 . Subdweller 3 | . . . 3 Best Kill Streak 11 | 4 11 2 1 Combat Bots Only 8 | . 8 2 1 Max Kills in Single Turn 1 | 1 1 1 1 Gunslinging . | . . . . Exploded . | . . . . Melee . | . . . . Uniques/NPCs Destroyed . | . . . . Combat | -11 -10 -10 -10 -------- Run | Yrd Mat Min Sub Hostile Shots Fired 109 | . 55 14 40 Missed 35 | . 15 6 14 Hits 74 | . 40 8 26 Projectile 74 | . 40 8 26 AOE 2 | . . . 2 Critical Strikes 1 | . 1 . . Damage Taken 971 | . 317 65 589 Core 250 | . 33 28 189 Absorbed by Shields . | . . . . Ignored by Resistances 520 | . 202 42 276 Core Remaining (%) 100 | 100 . . . Volleys Fired 78 | 10 43 7 18 Largest 2 | 2 2 2 2 Hottest 165 | 40 125 125 165 Shots Fired 156 | 20 86 14 36 Gun 117 | 20 72 7 18 Cannon 36 | . 14 7 15 Launcher . | . . . . Special 3 | . . . 3 Kinetic 78 | 20 58 . . Thermal 77 | . 28 14 35 Explosive . | . . . . Electromagnetic 1 | . . . 1 Robot Hit Streak 35 | 16 35 17 13 Robot Miss Streak 2 | . 2 1 1 Penetration Max . | . . . . Secondary Targets 3 | . 3 . . Max Gunslinging Chain 1 | . 1 . . Shots Hit Robots 120 | 16 68 12 24 Core Hits 49 | 7 29 6 7 Critical Kills 1 | . 1 . . Critical Parts Destroyed 1 | . 1 . . Critical Strikes 2 | . 2 . . Destroy 2 | . 2 . . Melee Attacks 7 | . . . 7 Impact 7 | . . . 7 Slashing . | . . . . Piercing . | . . . . Sneak Attacks 1 | . . . 1 Combat Hostiles . | . . . . Follow-up Attacks . | . . . . Damage Inflicted 1768 | 204 946 204 414 Guns 1240 | 204 788 82 166 Cannons 419 | . 158 122 139 Explosions . | . . . . Melee 109 | . . . 109 Ramming . | . . . . Kinetic 844 | 204 640 . . Thermal 815 | . 306 204 305 Explosive . | . . . . Electromagnetic . | . . . . Impact 109 | . . . 109 Slashing . | . . . . Piercing . | . . . . Highest Corruption . | . . . . Average Corruption . | . . . . Corruption Purged . | . . . . Corruption Blocked . | . . . . Overload Shots . | . . . . Overflow Damage 4 | . 4 . . Projectiles 4 | . 4 . . Explosions . | . . . . Melee . | . . . . Knockbacks 2 | . . . 2 Impact 2 | . . . 2 Kinetic . | . . . . Secondary . | . . . . Self-Inflicted Damage . | . . . . Shots . | . . . . Rammed . | . . . . Targets Rammed . | . . . . Kicked . | . . . . Crushed . | . . . . Highest Temperature 426 | . 207 426 59 Average Temperature 89 | . 75 189 26 Received Heat Transfer 453 | . 315 54 84 Effects 3 | . . 3 . Matter Decay 1 | . . 1 . Short Circuit 2 | . . 2 . Siege Activations . | . . . . Martial Activations . | . . . . Shielding Activations . | . . . . Robots Disrupted . | . . . . Combat Hostiles . | . . . . Robots Corrupted . | . . . . Combat Hostiles . | . . . . Parts Fried . | . . . . Impact Corruptions . | . . . . Robots Melted . | . . . . Combat Hostiles . | . . . . Parts Melted 2 | . . 1 1 Heat Transferred 1813 | . 666 444 703 Parts Sabotaged . | . . . . Parts Stolen . | . . . . Parts Stripped . | . . . . Power Chain Reactions . | . . . . Alert | -11 -10 -10 -10 ------- Run | Yrd Mat Min Sub Maximum Alert Level . | . . . . Low Security (%) 100 | 100 100 100 . Level 1 . | . . . . Level 2 . | . . . . Level 3 . | . . . . Level 4 . | . . . . Level 5 . | . . . . High Security . | . . . . Max Security . | . . . . Peak Influence 135 | 15 135 52 . Initial . | . . . . Average 18 | 2 33 5 . Influence Increases 384 | 30 247 107 . Destroy 0b10 Robot/C 240 | . 160 80 . Destroy 0b10 Robot/NC 75 | 30 45 . . Destroy Leader 60 | . 40 20 . Allied During Kill 7 | . . 7 . Destroy Structure 2 | . 2 . . Influence Decreases 384 | 30 247 107 . Time Decay 374 | 30 237 107 . Lost Part 10 | . 10 . . Squads Dispatched . | . . . . Investigation . | . . . . Extermination . | . . . . Reinforcement . | . . . . Assault . | . . . . Garrison . | . . . . Intercept . | . . . . Searches Triggered . | . . . . Construction Impeded . | . . . . Haulers Reinforced . | . . . . Active Scanning Responses . | . . . . Cargo Convoy Interrupts . | . . . . Stealth | -11 -10 -10 -10 --------- Run | Yrd Mat Min Sub Distress Signals . | . . . . Communications Jammed . | . . . . Distress Signals . | . . . . Times Spotted 31 | . 18 4 9 Peak Tracking Total 5 | . 5 2 2 Tactical Retreats . | . . . . Traps | -11 -10 -10 -10 ------- Run | Yrd Mat Min Sub Traps Triggered 5 | . 1 . 4 Indirectly . | . . . . Trap Hack Attempts . | . . . . Triggered . | . . . . Disarmed . | . . . . Reprogrammed . | . . . . Reused . | . . . . Traps Extracted . | . . . . Installed . | . . . . Triggered . | . . . . Machines | -11 -10 -10 -10 ---------- Run | Yrd Mat Min Sub Machines Disabled . | . . . . Max in Single Turn . | . . . . Machines Repaired . | . . . . Machines Dismantled . | . . . . Machines Sabotaged . | . . . . Overloaded Fab Kills . | . . . . Hacking | -11 -10 -10 -10 --------- Run | Yrd Mat Min Sub Machines Accessed 1 | . . . 1 Terminals . | . . . . Fabricators . | . . . . Repair Stations . | . . . . Recycling Units . | . . . . Scanalyzers . | . . . . Garrison Access . | . . . . Total Hacks 4 | . . . 4 Successful 4 | . . . 4 Failed . | . . . . Catastrophic . | . . . . Database Lockouts . | . . . . Manual . | . . . . Terminals . | . . . . Fabricators . | . . . . Repair Stations . | . . . . Recycling Units . | . . . . Scanalyzers . | . . . . Garrison Access . | . . . . Terminal Hacks 4 | . . . 4 Record 4 | . . . 4 Fabricator Hacks . | . . . . Repair Station Hacks . | . . . . Recycling Unit Hacks . | . . . . Scanalyzer . | . . . . Garrison Access Hacks . | . . . . Unauthorized Hacks . | . . . . Terminals . | . . . . Fabricators . | . . . . Repair Stations . | . . . . Recycling Units . | . . . . Scanalyzers . | . . . . Garrison Access . | . . . . Data Cores Recovered . | . . . . Used . | . . . . Hacking Detections . | . . . . Full Trace Events . | . . . . Feedback Events . | . . . . Feedback Blocked . | . . . . Robot Schematics Acquired . | . . . . Robots Built . | . . . . Authchips . | . . . . Time . | . . . . Total Robot Build Rating . | . . . . Part Schematics Acquired . | . . . . Parts Built . | . . . . Authchips . | . . . . Time . | . . . . Total Part Build Rating . | . . . . Part Studies Acquired . | . . . . Parts Repaired . | . . . . Time . | . . . . Parts Recycled . | . . . . Recycled Matter . | . . . . Retrieved Matter . | . . . . Retrieved Components . | . . . . Parts Scanalyzed . | . . . . Part Schematics Acquired . | . . . . Parts Damaged . | . . . . Bothacking | -11 -10 -10 -10 ------------ Run | Yrd Mat Min Sub Used RIF Installer . | . . . . Robots Hacked . | . . . . Non-combat . | . . . . Combat . | . . . . Robot Hacks Applied . | . . . . Relay Couplers Released . | . . . . Fabnet Peak Effective % . | . . . . Robots Rewired . | . . . . Allies Hacked . | . . . . Hacks Repelled . | . . . . Allies | -11 -10 -10 -10 -------- Run | Yrd Mat Min Sub Total Allies 5 | . . 5 . Largest Group 5 | . . 5 5 Highest-Rated Group 78 | . . 78 78 Highest-Rated Ally 31 | . . 31 31 Total Orders . | . . . . Ally Attacks 16 | . . . 16 Total Damage 232 | . . . 232 Kills 4 | . . . 4 Allies Corrupted . | . . . . Allies Melted . | . . . . Intel | -11 -10 -10 -10 ------- Run | Yrd Mat Min Sub Active Infowar (turns) . | . . . . Robot Analysis Total . | . . . . Derelict Logs Recovered 2 | . . 1 1 Drone Launches . | . . . . Drone Recoveries . | . . . . Exploration | -11 -10 -10 -10 ------------- Run | Yrd Mat Min Sub Turns Passed 2077 | 93 569 553 862 Spaces Moved 2063 | 50 666 683 664 Core 32 | 27 2 . 3 Treads . | . . . . Legs . | . . . . Wheels 197 | 23 174 . . Hover 1834 | . 490 683 661 Flight . | . . . . Fastest Speed 50 | 50 52 52 56 Average Speed 69 | 83 59 54 92 Slowest Speed 350 | 150 100 56 350 Overloaded Moves . | . . . . Propulsion Burnouts . | . . . . Robots Hopped . | . . . . Potential Cave-ins . | . . . . Cave-ins Triggered . | . . . . Exploration Rate (%) 62 | 3 98 98 49 Regions Visited 3 Branch Regions 2 Pre-discovered Areas . | . . . . Known Exits Taken 3 | 1 1 1 . Unknown Exits Taken . | . . . . Scrap Searched 4 | . . 1 3 Spaces Dug . | . . . . Terrain Destroyed . | . . . . Melee . | . . . . Projectile . | . . . . AOE . | . . . . Terrain Rammed . | . . . . Walls Destroyed . | . . . . Machines Disabled . | . . . . Actions | -11 -10 -10 -10 --------- Run | Yrd Mat Min Sub Total 2540 | 80 755 851 854 Wait 302 | . . 146 156 Move 2060 | 49 665 682 664 Hop . | . . . . Pick Up 35 | 10 19 5 1 Fast Attach 6 | . 1 2 3 Attach 17 | 6 8 1 2 Detach 6 | . 5 1 . Swap 10 | 3 5 1 1 Drop 19 | 2 9 6 2 Fire 78 | 10 43 7 18 Melee 7 | . . . 7 Ram . | . . . . Kick . | . . . . Crush . | . . . . Escape Stasis . | . . . . Rewire . | . . . . Trap . | . . . . Miscellaneous . | . . . . Route ------- -11/Scrapyard -10/Materials (discovered 5 exits: *Mat x3 / *Min x2) -10/Mines (discovered 3 exits: *Mat x2 / *Sub) -10/Subcaves (discovered 1 exit: [*Scr]) History --------- Turn | Location | Event 7 | -11/Scrapyard | Identified exit to Materials 7 | -11/Scrapyard | Discovered exit to Materials (range 15) 94 | -11/Scrapyard | Entered Materials 94 | -10/Materials | Evolved 1 slot: Propulsion x1 263 | -10/Materials | Destroyed 8 combat bots 310 | -10/Materials | Identified exit to Materials 310 | -10/Materials | Discovered exit to Materials (range 16) 398 | -10/Materials | Discovered exit to Materials (range 7) 527 | -10/Materials | Discovered exit to Materials (range 7) 561 | -10/Materials | Identified exit to Mines 561 | -10/Materials | Discovered exit to Mines (range 9) 629 | -10/Materials | Discovered exit to Mines (range 16) 654 | -10/Materials | Build established: Hacker-Mutant 663 | -10/Materials | Entered Mines 693 | -10/Mines | Received a Rocket Launcher from a helpful Derelict 700 | -10/Mines | Assisted by bots powering up and referring to "LRC-V3" 790 | -10/Mines | Learned Materials trap positions 854 | -10/Mines | Identified exit to Subcaves 854 | -10/Mines | Discovered exit to Subcaves (range 7) 870 | -10/Mines | Discovered exit to Materials (range 8) 947 | -10/Mines | Deemed a non-threat by the Exiles lab entrance 992 | -10/Mines | Discovered exit to Materials (range 7) 1216 | -10/Mines | Entered Subcaves 1216 | -10/Subcaves | Accompanied by 5 allies 1217 | -10/Subcaves | Approached by a straggling Scientist 1231 | -10/Subcaves | Led the pair of lost Derelicts to an unsafe place 1329 | -10/Subcaves | Shifting Twisted Machinery released Flamer 1331 | -10/Subcaves | Learned Materials stockpile data 1421 | -10/Subcaves | Core integrity fell below 50% 1504 | -10/Subcaves | Visited Clippyterm 1506 | -10/Subcaves | Learned Research security intel 1506 | -10/Subcaves | Learned 40 Factory zone layouts 1646 | -10/Subcaves | Shifting Twisted Machinery released Hvy. Riot Gun 2067 | -10/Subcaves | Core integrity fell below 20% 2078 | -10/Subcaves | Destroyed by FQ-M0G(R) with Subdweller Laser Last Messages --------------- 01652_ Dropped Particle Gun. 01677_ Subatomizers dissect the Sub. Optics. 01682_ Acquired Hvy. Riot Gun. 01689_ Acquired Lgt. Angular Momentum Engine. 01690_ Subatomizers dissect the Sub. Optics. 01691_ Acquired 20 matter. 01732_ Triggered Piercing Trap. 01732_ Spikes shoot up from the floor. 01732_ Critical hit (Impale). 01732_ Imp. Hover Unit destroyed. 01739_ Triggered Shrapnel Trap. 01739_ An expanding cloud of shrapnel blasts out in all directions. 01739_ Trooper 1b destroyed. 01913_ Dropped Beam Cannon. 01932_ Sneak attack on AJ-JXF(O). 01960_ Acquired 5 matter. 02060_ FQ-M0G(R) knocked back. 02066_ 7G-J28(R) knocked back. 02068_ Imp. Hover Unit destroyed. Map ----- +----------------------------------------------------+ | ????????????????????# ###?????????? | | ????????????????????# #?????????? | | ????????????????????# ## # ##?????????? | | ????????????????????## ## #### #??????????? | | ????????????????????# #######??# ##?????????? | | ????????????????????## ##????????# #?????????? | | ????????????????????## ##???????## #?????????? | | ????????????????????# ######??# ##????????? | | ????????????????????# ## #### ########?? | | ????????????????????## &## ##? | | ?????????????????????# #? | | ?????????????????????# ## | | ?????????????????????# ### ! | | ?????????????????????## ##?# #####[ % | | ??????????????????????# ##??# ##### % | | ?????????????????????## ##### % % | | ????????????????????## [ ## # | | ????????????????????# | | ?????????#?????????## ## | | ?????????# ##????## # # ### | | ?????????# ### #######??# % | | ?????????# #????????## ## % | | ??????????# ##?????????# ## #### | | ??????????# #####??????##### #?### | | ?????????# ## [ # # #??????## #???# | | ????????" ?# @R #???????# ##??# | | ????????" R % #??# | | ????????# ## ##### ?# # | | ????????# ??# ## #????? ## # ## # #? | | ??????????? ???## ?## #???????##?????#??## #?? | | ????????????????## ??####??????????????????###??? | | ?????????????????###?????????????????????????????? | | ?????????????????????????????????????????????????? | | ?????????????????????????????????????????????????? | | ?????????????????????????????????????????????????? | | ?????????????????????????????????????????????????? | | ?????????????????????????????????????????????????? | | ?????????????????????????????????????????????????? | | ?????????????????????????????????????????????????? | | ?????????????????????????????????????????????????? | | ?????????????????????????????????????????????????? | | ?????????????????????????????????????????????????? | | ?????????????????????????????????????????????????? | | ?????????????????????????????????????????????????? | | ?????????????????????????????????????????????????? | | ?????????????????????????????????????????????????? | | | | | | | | | +----------------------------------------------------+ Best States ------------- Heat Dissipation 25 Energy Generation 18 Energy Capacity 170 Matter Stores 300 Matter Capacity 300 Sight Range 16 Terrain Scan Density 10 Additional Mass Support 6 Resistance: KI 35 Resistance: TH 35 Resistance: EX 35 Resistance: EM 35 Resistance: I 35 Resistance: S 35 Resistance: P 35 Evasion (%) 54 Targeting Accuracy 5 Offensive Hacking 20 Item Schematics ----------------- None Robot Schematics ------------------ None Fabricated ------------ Nothing Repaired ---------- Nothing Studied --------- None Alien Tech Used ----------------- None Achievements -------------- None Challenges ------------ None Game ------ Seed DispersionLargeTether Manual? 0 Play Time 00:15:23 Cumulative 198.4 hours Start 2025.12.15 @ 09:51:55 End 2025.12.15 @ 10:05:57 Sessions 1 Manual Loads 0 Difficulty Explorer Special Mode None Game No. 295 Rogue 0 Adventurer 0 Explorer 295 Win Type - Total 0 Types 0/0/0/0/0/0/0/0/0/0 Lore% 71 Gallery% 67 Achievement% 53 Wizard Run 0 Options --------- Layout 1 ASCII 0 Keyboard 0 Movement Mouse Keybinds 0 Fullscreen 1 Font 24/Smallcaps Map View 50x35 Zoom Use 0% Tactical HUD 1 Map Filters NONE Filters NONE Steam 1 RUN: 49dc976a-bbbc-4fc1-9445-f4b378c02f4c